bitfinex/quotes_ETHUSD_20240607
["timestamp","ask_amount","ask_price","bid_price","bid_amount"]
[1717759231770,2.14325803,3810.5,3810.4,5.47201778]
[1717759231970,2.62405,3810.9,3810.7,2.62417]
[1717759232177,0.56733052,3810.8,3810.7,2.62417]
[1717759232576,1.35533052,3810.8,3810.7,2.62417]
[1717759232761,0.56733052,3810.8,3810.7,2.62417]
[1717759233568,1.35533052,3810.8,3810.7,2.62417]
[1717759233767,0.56733052,3810.8,3810.7,2.62417]
[1717759234566,1.35533052,3810.8,3810.7,2.62417]
[1717759235066,0.56733052,3810.8,3810.7,2.62417]
[1717759235487,0.56733052,3810.8,3810.6,2.62425]
[1717759235766,0.56733052,3810.7,3810.6,2.62425]
[1717759237605,1.35533052,3810.7,3810.6,2.62425]
[1717759237791,0.56733052,3810.7,3810.6,2.62425]
[1717759240975,0.56733052,3810.8,3810.6,2.62425]
[1717759241174,0.56733052,3810.7,3810.6,2.62425]
[1717759241799,0.56733052,3810.7,3810.6,2.67842879]
[1717759242322,2.14322363,3810.7,3810.6,2.67842879]
[1717759242489,1.57589311,3810.7,3810.6,2.67842879]
[1717759242690,2.14322363,3810.7,3810.6,3.22842879]
[1717759242923,0.56733052,3810.7,3810.6,3.77725657]
[1717759243116,2.14322363,3810.8,3810.6,3.77725657]
[1717759243286,2.62405,3810.9,3810.8,2.62412]
[1717759243492,3.19138052,3810.9,3810.8,2.62412]
[1717759243712,3.19138052,3810.9,3810.8,2.67826245]
[1717759243713,2.62405,3810.9,3810.8,2.67826245]
[1717759243994,3.19138052,3810.9,3810.8,2.67826245]
[1717759244705,3.41205,3810.9,3810.8,2.67826245]
[1717759244909,3.19138052,3810.9,3810.8,2.67826245]
[1717759245204,4.19981776,3810.9,3810.8,2.67826245]
[1717759245414,3.19138052,3810.9,3810.8,2.67826245]
[1717759245617,4.98782458,3810.9,3810.8,2.67826245]
[1717759245819,3.19138052,3810.9,3810.8,2.67826245]
[1717759246023,2.62405,3810.9,3810.8,2.67826245]
[1717759246207,3.19138052,3810.9,3810.8,2.67826245]
[1717759246526,2.62405,3810.9,3810.8,2.67826245]
[1717759246729,3.41205,3810.9,3810.8,2.67826245]
[1717759246934,3.97938052,3810.9,3810.8,2.67826245]
[1717759247105,3.41205,3810.9,3810.8,2.67826245]
[1717759247304,3.97938052,3810.9,3810.8,2.67826245]
[1717759247527,2.62405,3810.9,3810.8,2.67826245]
[1717759247731,3.97938052,3810.9,3810.8,2.67826245]
[1717759247927,3.41205,3810.9,3810.8,2.67826245]
[1717759248317,2.62405,3810.9,3810.8,2.67826245]
[1717759248504,4.19983328,3810.9,3810.8,2.67826245]
[1717759248711,3.41205,3810.9,3810.8,2.67826245]
[1717759248914,2.62405,3810.9,3810.8,3.22826245]
[1717759249099,4.19983834,3810.9,3810.8,5.48336245]
[1717759249513,2.62405,3810.9,3810.8,5.48336245]
[1717759249954,4.19983834,3810.9,3810.8,5.48336245]
[1717759250958,4.19983834,3810.9,3810.8,3.22826245]
[1717759251103,2.62405,3810.9,3810.8,3.22826245]
[1717759251834,4.19983834,3810.9,3810.8,3.22826245]
[1717759252203,2.62405,3810.9,3810.8,3.22826245]
[1717759254408,4.19983834,3810.9,3810.8,0.05414245]
[1717759254607,4.19983834,3810.9,3810.6,2.62419]
[1717759254849,2.36378834,3810.8,3810.6,2.62419]
[1717759255144,1.57578834,3810.8,3810.6,2.62419]
[1717759255481,2.36089031,3810.8,3810.4,0.54936604]
[1717759255626,2.36089031,3810.8,3810.4,3.17368604]
[1717759255954,1.57578834,3810.7,3810.4,2.62432]
[1717759256642,0.788,3810.6,3810.4,2.62432]
[1717759256818,1.57578834,3810.7,3810.5,0.05233696]
[1717759257710,0.788,3810.6,3810.5,0.05233696]
[1717759258041,1.57578834,3810.7,3810.6,2.62425]
[1717759258419,1.57578834,3810.7,3810.6,2.67657637]
[1717759258619,2.36378834,3810.7,3810.6,2.67657637]
[1717759258943,1.57578834,3810.7,3810.6,2.67657637]
[1717759259149,1.57578834,3810.7,3810.6,0.05232637]
[1717759259306,1.57578834,3810.7,3810.4,2.62438]
[1717759259709,2.36378834,3810.7,3810.5,0.05233696]
[1717759259937,1.57578834,3810.7,3810.5,0.05233696]
[1717759261629,2.36378834,3810.7,3810.5,0.05233696]
[1717759261828,1.57578834,3810.7,3810.5,0.05233696]
[1717759265750,1.57578834,3810.7,3810.6,2.62425]
[1717759265951,1.57578834,3810.7,3810.6,3.22657637]
[1717759266956,2.36378834,3810.8,3810.6,3.22657637]
[1717759267318,1.57578834,3810.8,3810.6,3.22657637]
[1717759267722,2.36378834,3810.8,3810.6,3.22657637]
[1717759267962,1.57578834,3810.8,3810.6,3.22657637]
[1717759268664,2.36378834,3810.8,3810.6,3.22657637]
[1717759268863,1.57578834,3810.8,3810.6,3.22657637]
[1717759269337,1.57578834,3810.7,3810.6,3.22657637]
[1717759269858,1.57578834,3810.8,3810.6,3.22657637]
[1717759270220,1.57578834,3810.7,3810.6,3.22657637]
[1717759270459,1.57578834,3810.8,3810.6,3.22657637]
[1717759270827,3.19133456,3810.9,3810.8,2.62412]
[1717759271145,2.62405,3810.9,3810.8,2.62412]
[1717759271549,2.62405,3810.9,3810.8,2.67645546]
[1717759271862,4.19983834,3810.9,3810.8,0.05233546]
[1717759272158,4.19983834,3810.9,3810.7,2.62418]
[1717759272334,4.19983834,3810.9,3810.8,0.05233546]
[1717759272736,4.98783834,3810.9,3810.7,2.62418]
[1717759272946,4.05438834,3810.8,3810.6,2.62425]
[1717759273258,4.6216729,3810.8,3810.6,2.62425]
[1717759273459,4.6216729,3810.8,3810.5,2.62431]
[1717759273663,0.788,3810.7,3810.5,2.62431]
[1717759273965,2.4786,3810.8,3810.5,2.62431]
[1717759274163,1.57586129,3810.8,3810.7,2.62418]
[1717759274663,1.57586129,3810.8,3810.4,0.54936604]
[1717759274664,2.36386129,3810.8,3810.6,2.62424]
[1717759274873,0.788,3810.8,3810.6,2.62424]
[1717759275031,4.76722135,3810.9,3810.6,2.62424]
[1717759275368,1.57586129,3810.8,3810.6,2.62424]
[1717759275873,2.36386129,3810.8,3810.6,2.62424]
[1717759276070,1.57586129,3810.8,3810.6,2.62424]
[1717759276776,2.36386129,3810.8,3810.6,2.62424]
[1717759277141,1.57586129,3810.8,3810.6,2.62424]
[1717759277337,4.19991129,3810.9,3810.6,2.62424]
[1717759277641,0.788,3810.8,3810.6,2.62424]
[1717759277853,4.19991129,3810.9,3810.6,2.62424]
[1717759278475,4.19991129,3810.9,3810.7,2.62412]
[1717759278679,0.788,3810.8,3810.7,2.62412]
[1717759278975,4.19991129,3810.9,3810.7,2.62412]
[1717759279777,0.788,3810.8,3810.7,2.62412]
[1717759280082,4.19991129,3810.9,3810.7,2.62412]
[1717759280594,0.788,3810.8,3810.7,2.62412]
[1717759280888,4.19991129,3810.9,3810.7,2.62412]
[1717759281683,0.788,3810.8,3810.7,2.62412]
[1717759282063,0.788,3810.8,3810.5,3.17362604]
[1717759282273,1.35531006,3810.8,3810.5,3.17362604]
[1717759282455,5.26121317,3810.8,3810.5,3.17362604]
[1717759282650,0.788,3810.6,3810.4,3.17374604]
[1717759283093,1.57586129,3810.7,3810.4,3.17374604]
[1717759283301,1.57586129,3810.6,3810.4,2.62438]
[1717759283667,0.788,3810.5,3810.4,2.62438]
[1717759283868,1.57586129,3810.6,3810.4,2.62438]
[1717759283869,1.57590689,3810.6,3810.4,2.62438]
[1717759284169,2.36390689,3810.7,3810.4,2.62438]
[1717759284386,2.28564872,3810.7,3810.3,0.54936604]
[1717759284567,2.36390689,3810.6,3810.3,0.54936604]
[1717759284766,0.788,3810.4,3810.3,0.54936604]
[1717759285080,0.788,3810.4,3810.0,3.17401604]
[1717759285276,2.36405404,3810.4,3810.0,2.62465]
[1717759285471,1.57605404,3810.4,3810.0,3.17401604]
[1717759285672,0.788,3810.1,3810.0,3.17401604]
[1717759285887,1.57605404,3810.3,3810.0,3.17465]
[1717759286204,2.36405404,3810.4,3810.0,3.17465]
[1717759286400,1.57605404,3810.4,3810.0,3.17465]
[1717759286608,0.788,3810.2,3810.0,3.17465]
[1717759286904,2.36405404,3810.4,3810.1,0.05243985]
[1717759287502,2.36405404,3810.5,3810.1,0.05243985]
[1717759287662,0.788,3810.2,3810.1,0.05243985]
[1717759288097,2.36405404,3810.4,3810.1,0.05243985]
[1717759288271,0.788,3810.4,3810.1,0.05243985]
[1717759288475,1.57605404,3810.5,3810.1,0.05243985]
[1717759288798,2.36405404,3810.4,3810.1,0.05243985]
[1717759289373,1.57605404,3810.4,3810.1,0.05243985]
[1717759289566,0.788,3810.2,3810.1,0.05243985]
[1717759289767,2.36405404,3810.4,3810.1,0.05243985]
[1717759290409,1.57605404,3810.4,3810.1,0.05243985]
[1717759290619,0.788,3810.2,3810.1,0.05243985]
[1717759290821,0.788,3810.4,3810.1,0.05243985]
[1717759291187,2.3196,3810.3,3810.1,0.05243985]
[1717759291521,3.89565404,3810.3,3809.6,0.54936604]
[1717759291727,0.788,3810.2,3809.7,0.55]
[1717759291904,0.788,3810.2,3809.7,1.09936604]
[1717759292417,2.3196,3810.3,3809.7,3.72419604]
[1717759292604,0.788,3810.1,3809.7,3.72419604]
[1717759292799,3.1076,3810.3,3809.7,3.72419604]
[1717759293003,0.788,3810.3,3809.7,3.72419604]
[1717759293393,1.57605404,3810.4,3809.7,3.72419604]
[1717759293621,0.788,3810.2,3809.7,3.72419604]
[1717759293813,2.36405404,3810.4,3809.7,3.72419604]
[1717759294410,1.57605404,3810.4,3809.7,3.72419604]
[1717759294730,0.788,3810.1,3809.7,3.72419604]
[1717759294891,0.788,3810.3,3809.7,3.72419604]
[1717759295428,2.90762648,3810.5,3809.7,3.72419604]
[1717759295429,4.48368052,3810.5,3809.7,3.72419604]
[1717759295722,0.788,3810.1,3809.7,3.72419604]
[1717759296017,0.788,3810.3,3809.7,3.72419604]
[1717759296426,4.48368052,3810.5,3809.7,3.72419604]
[1717759296603,0.788,3810.1,3809.7,3.72419604]
[1717759296805,0.788,3810.3,3809.7,3.72419604]
[1717759297403,4.48368052,3810.5,3809.7,3.72419604]
[1717759297606,0.788,3810.1,3809.7,3.72419604]
[1717759297934,0.788,3810.3,3809.7,3.72419604]
[1717759298429,4.48368052,3810.5,3809.7,3.72419604]
[1717759298617,0.788,3810.1,3809.7,3.72419604]
[1717759298819,0.788,3810.3,3809.9,2.62472]
[1717759299406,4.48368052,3810.5,3809.9,2.62472]
[1717759299608,0.788,3810.1,3809.9,2.62472]
[1717759299831,0.788,3810.3,3809.9,2.62472]
[1717759300331,4.48368052,3810.5,3809.9,2.62472]
[1717759300332,5.27168052,3810.5,3809.9,2.62472]
[1717759300538,4.48368052,3810.5,3809.9,2.62472]
[1717759300694,0.788,3810.3,3809.9,2.62472]
[1717759301503,3.69562648,3810.5,3809.9,2.62472]
[1717759301704,0.788,3810.2,3809.9,2.62472]
[1717759301934,0.788,3810.4,3810.0,0.05251098]
[1717759302417,5.19447557,3810.5,3810.0,0.05251098]
[1717759302626,0.788,3810.2,3810.0,0.05251098]
[1717759302799,0.788,3810.4,3810.0,0.05251098]
[1717759303424,4.48368052,3810.5,3810.0,0.05251098]
[1717759303729,0.788,3810.2,3810.0,0.05251098]
[1717759304034,0.788,3810.4,3810.0,0.05251098]
[1717759304411,4.48368052,3810.5,3810.0,0.05251098]
[1717759304729,0.788,3810.2,3810.0,0.05251098]
[1717759304910,4.48368052,3810.5,3810.0,0.05251098]
[1717759304911,0.788,3810.4,3810.0,0.05251098]
[1717759305524,4.48368052,3810.5,3810.0,0.05251098]
[1717759305735,0.788,3810.2,3810.0,0.05251098]
[1717759305925,0.788,3810.4,3810.0,0.05251098]
[1717759306444,4.48368052,3810.5,3810.0,0.05251098]
[1717759306650,0.788,3810.1,3810.0,0.05251098]
[1717759306825,0.788,3810.3,3810.0,0.05251098]
[1717759307417,4.48368052,3810.5,3810.0,0.05251098]
[1717759307617,0.788,3810.2,3810.0,0.05251098]
[1717759307829,4.96104522,3810.5,3810.0,0.05251098]
[1717759307830,0.788,3810.4,3810.0,0.05251098]
[1717759308453,4.48368052,3810.5,3810.0,0.05251098]
[1717759308615,0.788,3810.2,3810.0,0.05251098]
[1717759308948,0.788,3810.4,3810.0,0.05251098]
[1717759309109,2.36405404,3810.4,3810.0,0.05251098]
[1717759309618,0.788,3810.2,3810.0,0.05251098]
[1717759309818,2.36405404,3810.4,3810.0,0.05251098]
[1717759310518,1.57605404,3810.4,3810.0,0.05251098]
[1717759310713,0.788,3810.2,3810.0,0.05251098]
[1717759311055,2.36405404,3810.4,3810.0,0.05251098]
[1717759311553,1.57605404,3810.4,3810.0,0.05251098]
[1717759311726,0.788,3810.2,3810.0,0.05251098]
[1717759311927,2.36405404,3810.4,3810.0,0.05251098]
[1717759312338,1.57605404,3810.3,3810.0,0.05251098]
[1717759312649,0.788,3810.2,3810.0,0.05251098]
[1717759312845,1.57605404,3810.3,3810.0,0.05251098]
[1717759313654,0.788,3810.2,3810.0,0.05251098]
[1717759313821,1.57605404,3810.3,3810.0,0.05251098]
[1717759314156,1.57605404,3810.2,3810.0,0.05251098]
[1717759314670,2.36405404,3810.2,3810.0,0.05251098]
[1717759314972,1.57605404,3810.2,3810.0,0.05251098]
[1717759315665,2.36405404,3810.2,3810.0,0.05251098]
[1717759315861,1.57605404,3810.2,3810.0,0.05251098]
[1717759316627,2.36405404,3810.2,3810.0,0.05251098]
[1717759316869,1.57605404,3810.2,3810.0,0.05251098]
[1717759317759,2.36405404,3810.2,3810.0,0.05251098]
[1717759318063,1.57605404,3810.2,3810.0,0.05251098]
[1717759318561,2.14338052,3810.2,3810.0,0.05251098]
[1717759318748,1.57605404,3810.2,3810.0,0.05251098]
[1717759319635,2.36405,3810.2,3810.0,0.05251098]
[1717759319834,1.57605,3810.2,3810.0,0.05251098]
[1717759320684,2.36405,3810.2,3810.0,2.67711098]
[1717759320987,1.57605,3810.2,3810.0,2.67711098]
[1717759321705,2.36405,3810.2,3810.0,2.67711098]
[1717759321907,1.57605,3810.2,3810.0,2.67711098]
[1717759323587,2.143428,3810.2,3810.0,2.67711098]
[1717759323754,1.57605,3810.2,3810.0,2.67711098]
[1717759324292,2.143428,3810.2,3810.0,2.67711098]
[1717759324479,1.57605,3810.2,3810.0,2.67711098]
[1717759324654,2.931428,3810.2,3810.0,2.67711098]
[1717759324846,2.143428,3810.2,3810.0,2.67711098]
[1717759325055,1.57605,3810.2,3810.0,2.67711098]
[1717759325264,2.143428,3810.2,3810.0,2.67711098]
[1717759325467,1.57605,3810.2,3810.0,2.67711098]
[1717759325762,2.931428,3810.2,3810.0,2.67711098]
[1717759325966,1.57605,3810.2,3810.0,2.67711098]
[1717759326387,2.143428,3810.2,3810.0,2.67711098]
[1717759326792,1.57605,3810.2,3810.0,2.67711098]
[1717759327284,2.143428,3810.2,3810.0,2.67711098]
[1717759327486,1.57605,3810.2,3810.0,2.67711098]
[1717759327691,1.57605,3810.2,3810.0,5.13981098]
[1717759327858,2.143428,3810.2,3810.0,5.13981098]
[1717759328059,1.57605,3810.2,3810.0,5.13981098]
[1717759328557,2.143428,3810.2,3810.0,5.68917702]
[1717759328757,1.57605,3810.2,3810.0,5.68917702]
[1717759329188,2.143428,3810.2,3810.0,5.68917702]
[1717759329396,1.57605,3810.2,3810.0,5.68917702]
[1717759330068,2.143428,3810.2,3810.0,5.68917702]
[1717759330278,1.57605,3810.2,3810.0,5.68917702]
[1717759330983,2.143428,3810.2,3810.0,5.68917702]
[1717759331183,1.57605,3810.2,3810.0,5.68917702]
[1717759331767,2.143428,3810.2,3810.0,5.68917702]
[1717759331982,1.57605,3810.2,3810.0,5.68917702]
[1717759332393,2.143428,3810.2,3810.0,5.68917702]
[1717759332591,0.788,3810.1,3810.0,0.60187702]
[1717759332796,1.355378,3810.1,3810.0,0.05251098]
[1717759333155,2.471,3810.0,3809.6,0.54936604]
[1717759333354,2.471,3810.0,3809.5,2.62494]
[1717759333355,1.57625452,3809.8,3809.5,3.17430604]
[1717759333771,0.788,3809.6,3809.5,3.17430604]
[1717759333980,2.36425452,3809.8,3809.5,3.72430604]
[1717759334477,1.57625452,3809.8,3809.5,3.17494]
[1717759334665,0.788,3809.6,3809.5,3.17494]
[1717759335006,2.36425452,3809.8,3809.5,3.17494]
[1717759335191,0.788,3809.8,3809.5,3.17494]
[1717759335399,0.55596046,3809.8,3809.4,0.54936604]
[1717759335903,0.55596046,3809.8,3809.2,0.54936604]
[1717759335904,2.36425452,3809.7,3809.2,0.54936604]
[1717759336073,2.36425452,3809.7,3809.3,0.55]
[1717759336279,2.36425452,3809.7,3809.3,3.17515]
[1717759336480,1.57625452,3809.7,3809.3,3.17515]
[1717759336688,0.788,3809.4,3809.3,3.17515]
[1717759336893,1.57625452,3809.7,3809.2,0.54936604]
[1717759337101,0.788,3809.4,3809.1,3.17459604]
[1717759337301,1.26484525,3809.6,3809.1,3.17459604]
[1717759337511,0.47684525,3809.6,3809.1,3.17459604]
[1717759337665,0.788,3809.3,3809.1,3.17459604]
[1717759337871,0.788,3809.3,3809.0,3.17471604]
[1717759338179,0.788,3809.5,3809.0,3.17471604]
[1717759338385,2.75719198,3809.5,3809.0,3.41335]
[1717759338586,2.75719198,3809.5,3809.0,2.62535]
[1717759338821,0.788,3809.4,3809.0,2.62535]
[1717759339121,2.75719198,3809.5,3809.0,2.62535]
[1717759339706,0.788,3809.2,3809.0,2.62535]
[1717759340005,0.788,3809.4,3809.0,2.62535]
[1717759340410,2.2894,3809.5,3809.0,2.62535]
[1717759340726,0.788,3809.3,3809.0,2.62535]
[1717759340907,3.0774,3809.5,3809.0,2.62535]
[1717759341495,2.2894,3809.5,3809.0,2.62535]
[1717759341693,0.788,3809.4,3809.0,2.62535]
[1717759342419,6.65337452,3809.8,3809.0,3.41335]
[1717759342580,1.07904146,3809.7,3809.0,2.62535]
[1717759342783,0.788,3809.5,3809.0,2.62535]
[1717759343485,1.07904146,3809.7,3809.0,2.62535]
[1717759343684,0.788,3809.3,3809.0,2.62535]
[1717759343885,0.788,3809.7,3809.2,2.6252]
[1717759344507,2.62482,3809.8,3809.2,2.6252]
[1717759344680,0.788,3809.5,3809.2,2.6252]
[1717759344881,0.01059683,3809.4,3809.2,2.6252]
[1717759347121,0.01059683,3809.4,3809.3,2.9449836]
[1717759347689,0.79859683,3809.4,3809.3,2.9449836]
[1717759347913,0.01059683,3809.4,3809.3,2.9449836]
[1717759348301,0.01059683,3809.4,3809.3,0.5975836]
[1717759348501,0.01059683,3809.4,3809.3,0.55]
[1717759348695,0.01059683,3809.4,3809.3,0.59760127]
[1717759348915,0.01059683,3809.4,3809.3,0.04760127]
[1717759349217,0.01059683,3809.4,3809.2,2.6252]
[1717759349424,0.01059683,3809.4,3809.3,0.04760127]
[1717759349719,0.79859683,3809.4,3809.2,2.6252]
[1717759349921,0.01059683,3809.4,3809.3,0.04760127]
[1717759350127,0.01059683,3809.4,3809.2,2.6252]
[1717759350314,0.01059683,3809.4,3809.3,0.04760127]
[1717759350624,0.01059683,3809.4,3809.2,2.6252]
[1717759350829,0.01059683,3809.4,3809.3,0.04760127]
[1717759351125,0.01059683,3809.4,3809.3,2.388]
[1717759351325,0.01059683,3809.4,3809.3,2.98560127]
[1717759352431,0.01059683,3809.4,3809.3,3.77360127]
[1717759352604,0.01059683,3809.4,3809.3,2.98560127]
[1717759354608,0.01059683,3809.4,3809.3,0.59760127]
[1717759355494,0.01059683,3809.4,3809.3,0.04760127]
[1717759355694,0.01059683,3809.4,3809.2,2.6252]
[1717759356031,0.01059683,3809.4,3809.3,0.59766182]
[1717759358095,0.01059683,3809.4,3809.3,3.66256182]
[1717759358840,0.01059683,3809.4,3809.3,6.31111359]
[1717759359697,0.01059683,3809.4,3809.3,5.52311359]
[1717759359909,0.01059683,3809.4,3809.3,6.31111359]
[1717759360611,0.01059683,3809.4,3809.3,5.52311359]
[1717759360937,0.01059683,3809.4,3809.3,6.31111359]
[1717759365402,0.01059683,3809.4,3809.3,5.48705102]
[1717759368950,0.01059683,3809.4,3809.3,4.69905102]
[1717759369149,0.01059683,3809.4,3809.3,5.48705102]
[1717759370558,0.01059683,3809.4,3809.3,4.69905102]
[1717759370865,0.01059683,3809.4,3809.3,5.48705102]
[1717759375320,0.01059683,3809.4,3809.3,4.69905102]
[1717759375525,0.01059683,3809.4,3809.3,6.30925884]
[1717759378933,0.01059683,3809.4,3809.3,5.48705102]
[1717759379463,0.01059683,3809.4,3809.3,6.30928269]
[1717759380686,0.01059683,3809.4,3809.3,6.29489881]
[1717759385231,0.01059683,3809.4,3809.3,5.50689881]
[1717759385432,0.01059683,3809.4,3809.3,4.01799881]
[1717759388849,0.01059683,3809.4,3809.3,3.22999881]
[1717759389477,0.01059683,3809.4,3809.3,1.92000646]
[1717759389679,0.01059683,3809.4,3809.3,1.13200646]
[1717759391138,0.01059683,3809.4,3809.3,1.37127794]
[1717759391752,0.01059683,3809.4,3809.3,0.58327794]
[1717759394150,0.01059683,3809.4,3809.3,4.01810973]
[1717759396193,0.01059683,3809.4,3809.3,3.19587806]
[1717759399277,0.01059683,3809.4,3809.3,4.29547684]
[1717759400292,0.01059683,3809.4,3809.3,3.50747684]
[1717759400488,0.01059683,3809.4,3809.3,4.29547684]
[1717759401099,0.01059683,3809.4,3809.3,3.50747684]
[1717759401275,0.01059683,3809.4,3809.3,4.29547684]
[1717759402286,0.01059683,3809.4,3809.3,3.19587806]
[1717759402877,0.01059683,3809.4,3809.3,4.57009851]
[1717759403277,0.01059683,3809.4,3809.3,3.19587806]
[1717759405419,0.01059683,3809.4,3809.3,2.40787806]
[1717759405598,0.01059683,3809.4,3809.3,3.19587806]
[1717759410722,0.01059683,3809.4,3809.3,2.40787806]
[1717759410918,0.01059683,3809.4,3809.3,3.19587806]
[1717759411285,0.01059683,3809.4,3809.3,2.40787806]
[1717759411482,0.01059683,3809.4,3809.3,3.19587806]
[1717759412435,0.01059683,3809.4,3809.3,2.40787806]
[1717759412583,0.01059683,3809.4,3809.3,3.19587806]
[1717759412984,0.01059683,3809.4,3809.3,2.40787806]
[1717759413185,0.01059683,3809.4,3809.3,3.19587806]
[1717759419890,2.62482,3809.8,3809.4,2.62505]
[1717759420216,2.62482,3809.8,3809.7,1.09959158]
[1717759420412,2.62482,3809.8,3809.7,3.4741917]
[1717759420591,2.62482,3809.8,3809.7,4.30655618]
[1717759420787,2.62482,3809.8,3809.7,3.51855618]
[1717759421204,2.62482,3809.8,3809.7,8.76829618]
[1717759421607,2.62482,3809.8,3809.7,9.55629618]
[1717759421806,2.62482,3809.8,3809.7,8.76829618]
[1717759422597,2.62482,3809.8,3809.7,9.55629618]
[1717759422807,2.62482,3809.8,3809.7,8.76829618]
[1717759424237,2.62482,3809.8,3809.7,7.6687046]
[1717759425597,2.62482,3809.8,3809.7,8.4567046]
[1717759425798,2.62482,3809.8,3809.7,7.6687046]
[1717759436150,2.62482,3809.8,3809.7,8.76829618]
[1717759439267,2.62482,3809.8,3809.7,9.55629618]
[1717759439642,2.62482,3809.8,3809.7,8.76829618]
[1717759443481,2.62482,3809.8,3809.7,9.55629618]
[1717759443655,2.62482,3809.8,3809.7,8.76829618]
[1717759444572,2.62482,3809.8,3809.7,9.55629618]
[1717759444766,2.62482,3809.8,3809.7,8.76829618]
[1717759447159,2.62482,3809.8,3809.7,7.6687046]
[1717759461426,2.62482,3809.8,3809.7,9.04531718]
[1717759463026,2.62482,3809.8,3809.7,7.6687046]
[1717759463198,2.62482,3809.8,3809.7,9.045109]
[1717759467281,2.62482,3809.8,3809.7,11.669979]
[1717759473627,2.62482,3809.8,3809.7,11.66971715]
[1717759474028,2.62482,3809.8,3809.7,10.2935746]
[1717759474326,2.62482,3809.8,3809.7,11.66974888]
[1717759490400,2.62469,3810.0,3809.9,7.87422]
[1717759490613,2.62469,3810.0,3809.9,12.41303363]
[1717759490756,2.62469,3810.0,3809.9,12.45735424]
[1717759491090,2.62469,3810.0,3809.9,12.73259694]
[1717759491375,2.62469,3810.0,3809.9,11.08114073]
[1717759491763,2.62469,3810.0,3809.9,13.36154632]
[1717759492584,2.62469,3810.0,3809.9,15.98628632]
[1717759494387,2.62469,3810.0,3809.9,18.98628632]
[1717759495191,2.62469,3810.0,3809.9,16.70588073]
[1717759496098,0.01059683,3810.3,3810.2,7.87359]
[1717759496293,0.01059683,3810.3,3810.2,15.17929059]
[1717759496588,0.01059683,3810.3,3810.2,14.0803125]
[1717759496778,0.01059683,3810.3,3810.2,15.45403511]
[1717759497180,0.01059683,3810.3,3810.2,14.0803125]
[1717759500565,0.01059683,3810.3,3810.2,16.7048425]
[1717759500981,0.01059683,3810.3,3810.2,18.07793464]
[1717759501176,0.01059683,3810.3,3810.2,19.12795564]
[1717759502058,0.01059683,3810.3,3810.2,17.7548635]
[1717759502560,0.01059683,3810.3,3810.2,18.41827041]
[1717759502766,0.01059683,3810.3,3810.2,19.79136255]
[1717759502767,6.83e-06,3810.3,3810.2,19.79136255]
[1717759503295,6.83e-06,3810.3,3810.2,18.41827041]
[1717759503596,6.83e-06,3810.3,3810.2,20.69799144]
[1717759505887,6.83e-06,3810.3,3810.2,18.41827041]
[1717759506792,6.83e-06,3810.3,3810.2,20.69794712]
[1717759506995,0.008,3811.8,3811.7,5.247]
[1717759507202,2.623,3812.5,3811.7,6.585]
[1717759507416,2.623,3812.5,3811.9,6.03472]
[1717759507618,2.259,3812.2,3811.9,6.03472]
[1717759507777,2.259,3812.2,3811.9,9.25173242]
[1717759507978,2.259,3812.2,3811.9,12.25173242]
[1717759508226,2.259,3812.2,3811.9,12.79984821]
[1717759508387,2.259,3812.2,3811.9,12.25173242]
[1717759508785,2.259,3812.2,3811.9,12.79984821]
[1717759509283,4.882,3812.5,3812.4,2.62301]
[1717759509487,4.882,3812.5,3812.4,3.45460196]
[1717759509980,4.882,3812.5,3812.4,4.00460196]
[1717759510186,4.882,3812.5,3812.4,6.62761196]
[1717759512400,2.623,3812.5,3812.4,6.62761196]
[1717759513387,2.623,3812.5,3812.4,9.62761196]
[1717759514091,2.623,3812.5,3812.4,12.25062196]
[1717759514289,2.623,3812.5,3812.4,11.46262196]
[1717759514493,2.623,3812.5,3812.4,12.25062196]
[1717759521329,2.62275,3812.8,3812.7,7.86843]
[1717759521533,2.62275,3812.8,3812.7,12.24770814]
[1717759523189,2.62275,3812.8,3812.7,11.45970814]
[1717759523529,2.62275,3812.8,3812.7,12.24770814]
[1717759523697,2.62275,3812.8,3812.7,11.45970814]
[1717759524096,2.62275,3812.8,3812.7,12.24770814]
[1717759524495,2.62275,3812.8,3812.7,11.45970814]
[1717759524698,2.62275,3812.8,3812.7,12.24770814]
[1717759529626,2.3184,3813.5,3813.4,5.24466]
[1717759529937,2.3184,3813.5,3813.4,6.62368799]
[1717759530304,2.3184,3813.5,3813.4,5.83568799]
[1717759530533,2.3184,3813.5,3813.4,6.62368799]
[1717759535452,2.3184,3813.5,3813.4,5.83568799]
[1717759539115,0.008,3813.8,3813.7,2.62212]
[1717759539456,4.19633432,3814.2,3813.7,3.21317671]
[1717759539825,2.2592,3814.1,3813.8,2.62204]
[1717759540041,2.2592,3814.1,3813.8,5.24409]
[1717759540354,2.2592,3814.1,3814.0,2.62191]
[1717759540866,2.2592,3814.1,3814.0,2.66265039]
[1717759545477,2.2592,3814.1,3814.0,5.28456039]
[1717759546484,2.62185,3814.2,3814.0,5.83456039]
[1717759553196,2.62185,3814.2,3814.1,1.338]
[1717759553556,2.62185,3814.2,3814.1,1.37872982]
[1717759554277,2.62185,3814.2,3814.1,0.59072982]
[1717759556298,2.62185,3814.2,3814.1,1.37872982]
[1717759556505,2.62185,3814.2,3814.1,0.59072982]
[1717759558302,5.02625,3814.2,3814.1,0.04072982]
[1717759559778,2.62185,3814.2,3814.1,0.59072982]
[1717759560081,2.62185,3814.2,3814.1,1.37872982]
[1717759560280,2.62185,3814.2,3814.1,0.59072982]
[1717759560499,2.62185,3814.2,3814.1,1.37872982]
[1717759561782,2.62185,3814.2,3814.1,0.59072982]
[1717759562090,2.62185,3814.2,3814.1,1.37872982]
[1717759564568,2.59585,3814.2,3814.1,0.59072982]
[1717759565026,4.86015,3814.2,3814.1,0.59072982]
[1717759565498,2.59585,3814.2,3814.1,0.59072982]
[1717759569606,2.59585,3814.2,3814.1,0.56472982]
[1717759569805,2.59585,3814.2,3814.1,0.58968692]
[1717759573612,2.62152,3814.6,3814.1,3.58968692]
[1717759573812,2.62152,3814.6,3814.3,0.54811579]
[1717759574121,2.62152,3814.6,3814.5,0.788]
[1717759574517,2.62152,3814.6,3814.5,1.37755402]
[1717759574871,2.62152,3814.6,3814.5,9.24226402]
[1717759575079,4.91632,3814.6,3814.5,8.45426402]
[1717759575304,2.62152,3814.6,3814.5,8.45426402]
[1717759583921,2.62152,3814.6,3814.5,5.83269402]